fUST/lending_fUST_20250930
["ID","MTS","AMOUNT","RATE_DAILY","PERIOD"]
[388444976,1759170650599,-480.0,0.00024156,2]
[388444977,1759170650608,-480.0,0.00024156,2]
[388444978,1759170650617,-151.0,0.00024156,7]
[388444979,1759170650626,-151.0,0.00024156,7]
[388444980,1759170650635,-151.0,0.00024156,7]
[388444981,1759170650643,-153.871709,0.00024156,7]
[388444982,1759170650652,-480.0,0.00024156,2]
[388444983,1759170650661,-480.0,0.00024156,2]
[388444984,1759170650670,-480.0,0.00024156,2]
[388444985,1759170650679,-480.0,0.00024156,2]
[388444986,1759170650688,-180.758138,0.00024156,7]
[388444987,1759170650696,-151.0,0.00024156,7]
[388444988,1759170650705,-180.758138,0.00024156,7]
[388444989,1759170650714,-151.0,0.00024156,7]
[388444990,1759170650723,-732.39,0.00024156,2]
[388444991,1759170650732,-180.758138,0.00024156,7]
[388444992,1759170650740,-151.0,0.00024156,7]
[388444993,1759170650749,-180.758138,0.00024156,7]
[388444994,1759170650758,-609.56,0.00024156,2]
[388444995,1759170650766,-480.0,0.00024156,2]
[388444996,1759170650775,-151.0,0.00024156,7]
[388444997,1759170650784,-151.0,0.00024156,7]
[388444998,1759170650793,-151.0,0.00024156,7]
[388444999,1759170650801,-151.0,0.00024156,7]
[388445000,1759170650810,-151.0,0.00024156,7]
[388445001,1759170650819,-749.55,0.00024156,2]
[388445002,1759170650828,-249.303497,0.00024156,7]
[388445003,1759170650837,-480.0,0.00024156,2]
[388445004,1759170650846,-249.303497,0.00024156,7]
[388445005,1759170650855,-249.303497,0.00024156,7]
[388445006,1759170650863,-249.303497,0.00024156,7]
[388445007,1759170650872,-151.0,0.00024156,7]
[388445008,1759170650881,-151.0,0.00024156,7]
[388445009,1759170650890,-557.36,0.00024156,2]
[388445010,1759170650899,-151.0,0.00024156,7]
[388445011,1759170650908,-151.0,0.00024156,7]
[388445012,1759170650918,-151.0,0.00024156,7]
[388445013,1759170650927,-151.0,0.00024156,7]
[388445014,1759170650937,-151.0,0.00024156,7]
[388445015,1759170650946,-224.313998,0.00024156,7]
[388445016,1759170650955,-480.0,0.00024156,2]
[388445017,1759170650964,-480.0,0.00024156,2]
[388445018,1759170650974,-712.62,0.00024156,2]
[388445019,1759170650984,-480.0,0.00024156,2]
[388445020,1759170650994,-480.0,0.00024156,2]
[388445021,1759170651003,-473.66,0.00024156,2]
[388445022,1759170651012,-535.93,0.00024156,2]
[388445023,1759170651022,-533.2,0.00024156,2]
[388445024,1759170651031,-480.0,0.00024156,2]
[388445025,1759170651040,-480.0,0.00024156,2]
[388445026,1759170651050,-480.0,0.00024156,2]
[388445027,1759170651060,-480.0,0.00024156,2]
[388445028,1759170651070,-480.0,0.00024156,2]
[388445029,1759170651080,-502.47,0.00024156,2]
[388445030,1759170651089,-151.0,0.00024156,7]
[388445031,1759170651100,-151.0,0.00024156,7]
[388445032,1759170651111,-401.230282,0.00024156,7]
[388445033,1759170651120,-401.230282,0.00024156,7]
[388445034,1759170651129,-637.31,0.00024156,2]
[388445035,1759170651139,-401.230282,0.00024156,7]
[388445036,1759170651149,-401.230282,0.00024156,7]
[388445037,1759170651159,-151.0,0.00024156,7]
[388445038,1759170651171,-151.0,0.00024156,7]
[388445039,1759170651180,-298.945,0.00024156,7]
[388445040,1759170651192,-151.0,0.00024156,7]
[388445041,1759170651204,-151.0,0.00024156,7]
[388445042,1759170651214,-151.0,0.00024156,7]
[388445043,1759170651224,-151.0,0.00024156,7]
[388445044,1759170651382,-480.0,0.00024156,2]
[388445045,1759170651392,-151.0,0.00024156,7]
[388445046,1759170651400,-480.0,0.00024156,2]
[388445047,1759170651408,-151.0,0.00024156,7]
[388445048,1759170651416,-151.0,0.00024156,7]
[388445049,1759170651425,-151.0,0.00024156,7]
[388445050,1759170651433,-1238.18,0.00024156,2]
[388445051,1759170651442,-151.0,0.00024156,7]
[388445052,1759170651451,-480.0,0.00024156,2]
[388445053,1759170651460,-169.358262,0.00024156,7]
[388445054,1759170651467,-169.358262,0.00024156,7]
[388445055,1759170651476,-511.38,0.00024156,2]
[388445056,1759170651484,-169.358262,0.00024156,7]
[388445057,1759170651495,-200.0,0.00024156,2]
[388445058,1759170651504,-169.358262,0.00024156,7]
[388445059,1759170651514,-151.0,0.00024156,7]
[388445060,1759170651523,-151.0,0.00024156,7]
[388445061,1759170651532,-480.0,0.00024156,2]
[388445062,1759170651542,-480.0,0.00024156,2]
[388445063,1759170651551,-480.0,0.00024156,2]
[388445064,1759170651561,-151.0,0.00024156,7]
[388445065,1759170651571,-151.0,0.00024156,7]
[388445066,1759170651580,-151.0,0.00024156,7]
[388445067,1759170651589,-151.0,0.00024156,7]
[388445068,1759170651599,-151.0,0.00024156,7]
[388445069,1759170651608,-151.0,0.00024156,7]
[388445070,1759170651617,-151.0,0.00024156,7]
[388445071,1759170651627,-480.0,0.00024156,2]
[388445072,1759170651635,-151.0,0.00024156,7]
[388445073,1759170651645,-151.0,0.00024156,7]
[388445074,1759170651654,-358.349785,0.00024156,7]
[388445075,1759170651663,-151.0,0.00024156,7]
[388445076,1759170651672,-480.0,0.00024156,2]
[388445077,1759170651681,-358.349785,0.00024156,7]
[388445078,1759170651691,-358.349785,0.00024156,7]
[388445079,1759170651700,-358.349785,0.00024156,7]
[388445080,1759170651709,-10000.0,0.00024156,7]
[388445081,1759170651719,-10000.0,0.00024156,7]
[388445082,1759170651728,-518.1,0.00024156,2]
[388445083,1759170651737,-10000.0,0.00024156,7]
[388445084,1759170651747,-10000.0,0.00024156,7]
[388445085,1759170651756,-10000.0,0.00024156,7]
[388445086,1759170651765,-502.59,0.00024156,2]
[388445087,1759170651774,-151.0,0.00024156,7]
[388445088,1759170651784,-151.0,0.00024156,7]
[388445089,1759170651792,-772.759636,0.00024156,7]
[388445090,1759170651802,-772.759636,0.00024156,7]
[388445091,1759170651811,-151.0,0.00024156,7]
[388445092,1759170651821,-772.759636,0.00024156,7]
[388445093,1759170651830,-772.759636,0.00024156,7]
[388445094,1759170651840,-151.0,0.00024156,7]
[388445095,1759170651849,-151.0,0.00024156,7]
[388445096,1759170651859,-209.769297,0.00024156,7]
[388445097,1759170651868,-151.0,0.00024156,7]
[388445098,1759170651878,-151.0,0.00024156,7]
[388445099,1759170651887,-151.0,0.00024156,7]
[388445100,1759170651896,-209.769297,0.00024156,7]
[388445101,1759170651905,-151.0,0.00024156,7]
[388445102,1759170651913,-209.769297,0.00024156,7]
[388445103,1759170651922,-151.0,0.00024156,7]
[388445104,1759170651932,-209.769297,0.00024156,7]
[388445105,1759170651942,-480.0,0.00024156,2]
[388445106,1759170651953,-151.0,0.00024156,7]
[388445107,1759170651962,-151.0,0.00024156,7]
[388445108,1759170651971,-480.0,0.00024156,2]
[388445109,1759170651980,-509.66,0.00024156,2]
[388445110,1759170651990,-638.83,0.00024156,2]
[388445111,1759170651999,-480.0,0.00024156,2]
[388445112,1759170652009,-522.1,0.00024156,2]
[388445113,1759170652019,-1349.23,0.00024156,2]
[388445114,1759170652030,-500.0,0.00024156,2]
[388445115,1759170652040,-480.0,0.00024156,2]
[388445116,1759170652051,-800.0,0.00024165,2]
[388445117,1759170652061,-26733.66061061,0.00024172,2]
[388445118,1759170652279,-51487.38684153,0.00024172,2]
[388445119,1759170652964,480.0,0.00023322,2]
[388445120,1759170653011,594.6,0.00023334,2]
[388445121,1759170653742,480.0,0.00023322,2]
[388445122,1759170653832,480.0,0.00023333,2]
[388445123,1759170654076,480.0,0.00023333,2]
[388445124,1759170654101,393.29689068,0.00023312,2]
[388445125,1759170654150,480.0,0.00023334,2]
[388445126,1759170654187,-30.31167697,0.00023607,2]
[388445127,1759170654229,-449.68832303,0.00023607,2]
[388445128,1759170654237,-480.0,0.00023607,2]
[388445129,1759170654245,-487.97996752,0.00024172,2]
[388445130,1759170654669,480.0,0.00023334,2]
[388445131,1759170654735,480.0,0.00023233,2]
[388445132,1759170656049,89.90192528,0.00023233,2]
[388445133,1759170656071,390.09807472,0.00023233,2]
[388445134,1759170656210,480.0,0.00023334,2]
[388445135,1759170656343,480.0,0.00023333,2]
[388445136,1759170656411,480.0,0.00023334,2]
[388445137,1759170656436,480.0,0.00023333,2]
[388445138,1759170656598,624.37,0.00023323,2]
[388445139,1759170656644,480.0,0.00023333,2]
[388445140,1759170656676,480.0,0.00023334,2]
[388445141,1759170656705,480.0,0.00023334,2]
[388445142,1759170656824,480.0,0.00023222,2]
[388445143,1759170658486,480.0,0.00023334,2]
[388445144,1759170659594,480.0,0.00023322,2]
[388445145,1759170659817,539.48,0.00023333,2]
[388445146,1759170660146,508.6,0.00023222,2]
[388445147,1759170660395,1032.08,0.00023332,2]
[388445148,1759170660922,480.0,0.00023233,2]
[388445149,1759170660981,480.0,0.00023322,2]
[388445150,1759170662945,480.0,0.00023333,2]
[388445151,1759170663409,532.8572633,0.00023233,2]
[388445152,1759170692309,77504.777,0.00033622,60]
[388445153,1759170703669,-2735.23019477,0.00021575,13]
[388445154,1759170703699,-193.8507485,0.00021793,2]
[388445155,1759170703725,-480.0,0.00023222,2]
[388445156,1759170703752,-480.0,0.00023222,2]
[388445157,1759170703778,-480.0,0.00023222,2]
[388445158,1759170703805,-510.21,0.00023222,2]
[388445159,1759170703890,-480.0,0.00023233,2]
[388445160,1759170703919,-480.0,0.00023233,2]
[388445161,1759170703946,-480.0,0.00023233,2]
[388445162,1759170703973,-480.0,0.00023233,2]
[388445163,1759170704002,-168.0,0.00023295,2]
[388445164,1759170704030,-500.0,0.00023312,2]
[388445165,1759170704056,-500.0,0.00023312,2]
[388445166,1759170704084,-500.0,0.00023312,2]
[388445167,1759170704112,-500.0,0.00023312,2]
[388445168,1759170704137,-500.0,0.00023312,2]
[388445169,1759170704164,-324.01,0.00023312,2]
[388445170,1759170704319,-175.99,0.00023312,2]
[388445171,1759170704345,-500.0,0.00023312,2]
[388445172,1759170704371,-597.30794849,0.00023312,2]
[388445173,1759170704399,-500.0,0.00023312,2]
[388445174,1759170704427,-500.0,0.00023312,2]
[388445175,1759170704452,-500.0,0.00023312,2]
[388445176,1759170704478,-500.0,0.00023312,2]
[388445177,1759170704505,-430.87819726,0.00023312,2]
[388445178,1759170704533,-500.0,0.00023312,2]
[388445179,1759170704560,-500.0,0.00023312,2]
[388445180,1759170704587,-194.98272228,0.00023312,2]
[388445181,1759170704826,-408.17871822,0.00023312,2]
[388445182,1759170704859,-500.0,0.00023312,2]
[388445183,1759170704887,-500.0,0.00023312,2]
[388445184,1759170704916,-500.0,0.00023312,2]
[388445185,1759170704944,-500.0,0.00023312,2]
[388445186,1759170704972,-500.0,0.00023312,2]
[388445187,1759170705000,-285.39444474,0.00023312,2]
[388445188,1759170705034,-500.0,0.00023312,2]
[388445189,1759170705223,-204.0158748,0.00023312,2]
[388445190,1759170705254,-500.0,0.00023312,2]
[388445191,1759170705281,-480.0,0.00023322,2]
[388445192,1759170705428,-538.16,0.00023322,2]
[388445193,1759170705456,-1019.69,0.00023323,2]
[388445194,1759170705484,-480.0,0.00023323,2]
[388445195,1759170705513,-936.32,0.00023323,2]
[388445196,1759170705542,-966.12,0.00023323,2]
[388445197,1759170705616,-3956.87,0.00023323,2]
[388445198,1759170705645,-831.56,0.00023332,2]
[388445199,1759170705869,-919.4,0.00023332,2]
[388445200,1759170705897,-1783.95,0.00023332,2]
[388445201,1759170705926,-480.0,0.00023332,2]
[388445202,1759170705953,-616.73,0.00023333,2]
[388445203,1759170705980,-480.0,0.00023333,2]
[388445204,1759170706006,-480.0,0.00023333,2]
[388445205,1759170706132,-480.0,0.00023333,2]
[388445206,1759170706159,-480.0,0.00023333,2]
[388445207,1759170706188,-977.37,0.00023334,2]
[388445208,1759170706217,-480.0,0.00023334,2]
[388445209,1759170706254,-480.0,0.00023334,2]
[388445210,1759170706282,-480.0,0.00023334,2]
[388445211,1759170706312,-480.0,0.00023334,2]
[388445212,1759170706344,-480.0,0.00023334,2]
[388445213,1759170706373,-480.0,0.00023334,2]
[388445214,1759170706823,-393.57830241,0.00023334,2]
[388445216,1759170713816,-480.0,0.00023222,2]
[388445218,1759170713846,-480.0,0.00023233,2]
[388445219,1759170713875,-1568.9,0.00023332,2]
[388445220,1759170713904,-480.0,0.00023333,2]
[388445221,1759170713937,-1877.17,0.00023333,2]
[388445222,1759170713966,-86.42169759,0.00023334,2]
[388445223,1759170714029,-480.0,0.00023334,2]
[388445224,1759170714253,480.0,0.00023334,2]
[388445225,1759170716393,1798.59,0.00023323,2]
[388445226,1759170716977,480.0,0.00023332,2]
[388445227,1759170717105,487.06,0.00023334,2]
[388445228,1759170718660,480.0,0.00023333,2]
[388445229,1759170720575,480.0,0.00023332,2]
[388445230,1759170721288,578.46,0.00023333,2]
[388445231,1759170724101,480.0,0.00023222,2]
[388445232,1759170724910,578.7,0.00023333,2]
[388445233,1759170724984,480.0,0.00023323,2]
[388445234,1759170725686,2717.2,0.00023334,2]
[388445235,1759170725708,2282.8,0.00023334,2]
[388445236,1759170726417,577.58,0.00023332,2]
[388445237,1759170727211,1706.79,0.00023332,2]
[388445238,1759170727538,480.0,0.00023334,2]
[388445239,1759170729389,1035.08,0.00023233,2]
[388445240,1759170730127,480.0,0.00023322,2]
[388445241,1759170730642,-292.25657664,0.00023347,2]
[388445242,1759170731001,1704.01,0.00023323,2]
[388445243,1759170731578,554.13,0.00023233,2]
[388445244,1759170732590,892.51,0.00023323,2]
[388445245,1759170733800,-521.74342336,0.00023347,2]
[388445246,1759170734210,385.16228224,0.00023222,2]
[388445247,1759170734232,112.79771776,0.00023222,2]
[388445248,1759170735591,480.0,0.00023332,2]
[388445250,1759170735872,480.0,0.00023334,2]
[388445251,1759170736716,480.0,0.00023333,2]
[388445252,1759170737752,480.0,0.00023233,2]
[388445253,1759170738400,516.35,0.00023222,2]
[388445254,1759170738571,1210.69,0.00023332,2]
[388445255,1759170740046,480.0,0.00023322,2]
[388445256,1759170740340,480.0,0.00023333,2]
[388445257,1759170743003,596.32,0.00023333,2]
[388445258,1759170745867,480.0,0.00023334,2]
[388445259,1759170747088,480.0,0.00023334,2]
[388445260,1759170747242,666.31,0.00023332,2]
[388445261,1759170749139,563.29,0.00023323,2]
[388445262,1759170749584,480.0,0.00023322,2]
[388445263,1759170750513,970.76543552,0.00023323,2]
[388445264,1759170750537,3127.82456448,0.00023323,2]
[388445265,1759170751622,480.0,0.00023322,2]
[388445266,1759170752548,562.41,0.00023332,2]
[388445267,1759170752640,525.05,0.00023333,2]
[388445268,1759170753090,514.44,0.00023333,2]
[388445269,1759170753568,480.0,0.00023222,2]
[388445270,1759170753693,480.0,0.00023233,2]
[388445271,1759170754031,546.11,0.00023222,2]
[388445272,1759170757019,485.0,0.00023233,2]
[388445273,1759170757993,480.0,0.00023233,2]
[388445274,1759170758234,539.59,0.00023322,2]
[388445275,1759170759023,480.0,0.00023233,2]
[388445276,1759170761136,480.0,0.00023334,2]
[388445277,1759170761392,756.27,0.00023323,2]
[388445278,1759170762430,63.31543552,0.00023222,2]
[388445279,1759170762451,416.68456448,0.00023222,2]
[388445280,1759170762489,517.98,0.00023333,2]
[388445281,1759170765598,480.0,0.00023222,2]
[388445282,1759170765636,1826.32,0.00023323,2]
[388445283,1759170766014,550.91,0.00023233,2]
[388445284,1759170766622,480.0,0.00023233,2]
[388445285,1759170766792,480.0,0.00023334,2]
[388445286,1759170768455,480.0,0.00023233,2]
[388445287,1759170769417,480.0,0.00023334,2]
[388445288,1759170770916,569.74,0.00023333,2]
[388445289,1759170771159,485.33,0.00023222,2]
[388445290,1759170771732,2119.77,0.00023323,2]
[388445291,1759170772311,552.25971254,0.00023333,3]
[388445292,1759170775289,480.0,0.00023333,2]
[388445293,1759170776212,801.23,0.00023233,2]
[388445294,1759170776479,214.45028746,0.00023221,2]
[388445295,1759170776503,10000.01,0.00023221,2]
[388445296,1759170776526,10000.01,0.00023221,2]
[388445297,1759170776548,10000.01,0.00023221,2]
[388445298,1759170776571,10000.01,0.00023221,2]
[388445299,1759170776592,10000.01,0.00023221,2]
[388445300,1759170776614,10000.01,0.00023221,2]
[388445301,1759170776635,10000.01,0.00023221,2]
[388445302,1759170783954,-300.0,0.0002322,2]
[388445304,1759170813838,-273.08,0.00023211,3]
[388445305,1759170813869,-819.24,0.00023211,3]
[388445306,1759170823849,-470.69,0.00023211,10]
[388445307,1759170824546,-7332.10539156,0.00023221,2]
[388445308,1759170824795,-10000.01,0.00023221,2]
[388445309,1759170825159,-10000.01,0.00023221,2]
[388445310,1759170825290,-10000.01,0.00023221,2]
[388445311,1759170833972,-1016.66203704,0.00023122,2]
[388445312,1759170834021,-7966.68592592,0.00023221,2]
[388445313,1759170834208,-10000.01,0.00023221,2]
[388445314,1759170834346,-10000.01,0.00023221,2]
[388445315,1759170834486,-10000.01,0.00023221,2]
[388445316,1759170834672,-10000.01,0.00023221,2]
[388445317,1759170835158,-10000.01,0.00023221,2]
[388445318,1759170853873,-392.24,0.00023211,10]
[388445319,1759170853902,-326.87,0.00023211,10]
[388445320,1759170853968,-8561.79,0.00023221,2]
[388445321,1759170854015,-10000.01,0.00023221,2]
[388445322,1759170854152,-10000.01,0.00023221,2]
[388445323,1759170863868,-10000.01,0.00023221,2]
[388445324,1759170863989,-10000.01,0.00023221,2]
[388445325,1759170864110,-10000.01,0.00023221,2]
[388445326,1759170864261,-10000.01,0.00023221,2]
[388445327,1759170864374,-10000.01,0.00023221,2]
[388445328,1759170864506,-10000.01,0.00023221,2]
[388445329,1759170864657,-10000.01,0.00023221,2]
[388445330,1759170884035,-272.39,0.00023211,10]
[388445331,1759170884066,-480.0,0.0002322,2]
[388445332,1759170884096,-277.90683324,0.0002322,2]
[388445333,1759170884125,-162.76267904,0.0002322,2]
[388445334,1759170884155,-500.0,0.0002322,2]
[388445335,1759170884184,-500.0,0.0002322,2]
[388445336,1759170884212,-271.41787045,0.0002322,2]
[388445337,1759170884243,-500.0,0.0002322,2]
[388445338,1759170884273,-198.37716053,0.0002322,2]
[388445339,1759170884305,-158.98646636,0.0002322,2]
[388445340,1759170884338,-156.46430202,0.0002322,2]
[388445341,1759170884368,-411.55731942,0.0002322,2]
[388445342,1759170884590,-2220.28473788,0.00023221,2]
[388445343,1759170884604,-10000.01,0.00023221,2]
[388445345,1759170904002,-5000.0,0.00022749,13]
[388445346,1759170904040,-0.01,0.00022979,13]
[388445350,1759170919344,-150.0,0.00021793,2]
[388445351,1759170919374,-4700.01,0.00022587,13]
[388445352,1759170919412,-299.99,0.00022587,13]
[388445353,1759170919494,-250.0,0.00022793,2]
[388445354,1759170919523,-168.0,0.00022816,2]
[388445355,1759170919553,-168.0,0.00022888,2]
[388445356,1759170919581,-1200.0,0.00022978,2]
[388445357,1759170919610,-1428.02,0.00022979,13]
[388445358,1759170919685,-3571.97,0.00022979,13]
[388445359,1759170919722,-2104.4688584,0.0002299,2]
[388445360,1759170919751,-300.0,0.0002321,2]
[388445361,1759170919778,-1004.08524884,0.00023211,2]
[388445362,1759170919807,-195.46,0.00023211,10]
[388445363,1759170919839,-300.0,0.0002322,2]
[388445364,1759170919867,-300.0,0.0002322,2]
[388445365,1759170919895,-300.0,0.0002322,2]
[388445366,1759170919925,-300.0,0.0002322,2]
[388445367,1759170920031,-500.0,0.0002322,2]
[388445368,1759170920249,-391.98178552,0.00023221,2]
[388445369,1759170920263,-9000.01,0.00023221,2]
[388445370,1759170920308,-10000.01,0.00023221,2]
[388445371,1759170920327,-10000.01,0.00023221,2]
[388445372,1759170920437,-10000.01,0.00023221,2]
[388445373,1759170920509,-10000.01,0.00023221,2]
[388445374,1759170924041,-168.0,0.0002247,2]
[388445375,1759170924072,-194.41,0.00023211,10]
[388445376,1759170924102,-501.56,0.0002322,2]
[388445377,1759170924171,-8272.07,0.00023221,2]
[388445382,1759170972330,157.0,9.2e-07,2]
[388445383,1759170973416,157.0,9.2e-07,2]
[388445385,1759171080700,261.89,0.00016384,2]
[388445386,1759171081043,261.89,0.00016384,2]
[388445387,1759171081334,261.87,0.00016384,2]
[388445389,1759171135990,-280.20516563,0.00021226,2]
[388445390,1759171139426,-424.73732778,0.00021226,2]
[388445392,1759171161352,-300.0,0.00021226,2]
[388445394,1759171163068,-3995.05750659,0.00021226,2]
[388445395,1759171177554,2009.89498682,0.00021226,2]
[388445396,1759171192358,-2990.10501318,0.00021226,2]
[388445397,1759171200004,4019.79997364,0.00021226,2]
[388445398,1759171200027,980.20002636,0.00021226,2]
[388445399,1759171200852,-203.26568249,0.0002144,2]
[388445400,1759171203158,-369.19455436,0.0002144,2]
[388445401,1759171207867,-300.0,0.0002144,2]
[388445402,1759171209504,-199.79483437,0.0002144,2]
[388445403,1759171212084,-405.76413012,0.0002144,2]
[388445404,1759171217465,-184.7570488,0.0002144,2]
[388445405,1759171220043,-339.9829512,0.0002144,2]
[388445406,1759171222418,5000.0,0.00021226,2]
[388445407,1759171223532,-177.59204326,0.0002144,2]
[388445408,1759171225755,-245.48,0.0002144,2]
[388445409,1759171228348,-480.0,0.0002144,2]
[388445410,1759171231617,-481.41985255,0.0002144,2]
[388445411,1759171236162,-341.54319708,0.0002144,2]
[388445412,1759171238630,-455.58756823,0.0002144,2]
[388445413,1759171240639,-815.61813754,0.0002144,2]
[388445414,1759171240661,-300.0,0.00021656,2]
[388445415,1759171240682,-877.79248738,0.00021656,2]
[388445416,1759171245020,-480.0,0.00021439,2]
[388445417,1759171250128,-480.0,0.00021439,2]
[388445418,1759171252308,-385.16228224,0.00021439,2]
[388445419,1759171260513,356.15043277,0.00021226,2]
[388445420,1759171262418,-292.25657664,0.00021439,2]
[388445422,1759171276951,-300.0,0.000214,2]
[388445423,1759171276978,-93.57830241,0.00021439,2]
[388445424,1759171278925,153.0,9.2e-07,2]
[388445425,1759171279955,153.0,9.2e-07,2]
[388445426,1759171293540,-300.0,0.000214,2]
[388445427,1759171293563,-577.79248738,0.00021439,2]
[388445428,1759171306439,-300.0,0.000214,2]
[388445430,1759171320224,3357.65954087,0.00021226,2]
[388445431,1759171320245,1642.34045913,0.00021226,2]
[388445432,1759171322002,-329.46483437,0.00021439,2]
[388445433,1759171342876,3220.16387924,0.00021226,2]
[388445435,1759171365649,5000.0,0.00021226,2]
[388445437,1759171387715,137.50566163,0.00021226,2]
[388445438,1759171387736,4862.49433837,0.00021226,2]
[388445440,1759171425590,-271.5410163,0.000214,2]
[388445441,1759171427061,-9.32309597,0.000214,2]
[388445442,1759171427084,-219.13588773,0.00021439,2]
[388445443,1759171429262,-223.73,0.00021439,2]
[388445444,1759171431896,5000.0,0.00021226,2]
[388445445,1759171447527,137.51566163,0.00021226,2]
[388445446,1759171447553,4862.48433837,0.00021226,2]
[388445447,1759171463106,-322.20751262,0.00021656,2]
[388445448,1759171470576,5000.0,0.00021656,2]
[388445449,1759171478423,1852.61794839,0.00021656,2]
[388445451,1759171494200,2502.97702637,0.00021656,2]
[388445452,1759171494224,2497.02297363,0.00021656,2]
[388445454,1759171516746,5000.0,0.00021656,2]
[388445455,1759171539769,2502.98702637,0.00021656,2]
[388445456,1759171540049,2497.01297363,0.00021656,2]
[388445457,1759171562204,5000.0,0.00021656,2]
[388445459,1759171578012,-165.945385,0.00021876,2]
[388445460,1759171582872,-407.896665,0.00021943,2]
[388445461,1759171584630,5000.0,0.00021876,2]
[388445463,1759171607493,4184.21667,0.00021943,2]
[388445464,1759171607516,815.78333,0.00021943,2]
[388445466,1759171630978,5000.0,0.00021943,2]
[388445467,1759171653392,4184.22667,0.00021943,2]
[388445468,1759171653417,815.77333,0.00021943,2]
[388445469,1759171676486,5000.0,0.00021943,2]
[388445470,1759171683342,-1000.0,0.00022043,2]
[388445471,1759171689349,473.31539805,0.00021472,6]
[388445472,1759171695967,-168.42354809,0.00022084,2]
[388445473,1759171695988,-80.47859687,0.00022184,2]
[388445474,1759171700130,5000.0,0.00022043,2]
[388445475,1759171724383,2526.69460195,0.00022043,2]
[388445476,1759171724406,2473.30539805,0.00022043,2]
[388445478,1759171747240,5000.0,0.00022043,2]
[388445479,1759171770463,2526.70460195,0.00022043,2]
[388445480,1759171770485,1770.35083948,0.00022043,2]
[388445509,1759171832640,-69.52140313,0.00022184,2]
[388445511,1759171832652,-168.0,0.00022718,2]
[388445513,1759171832663,-160.0,0.00023,2]
[388445515,1759171832676,-168.0,0.0002302,2]
[388445517,1759171832687,-1029.79083864,0.00023031,2]
[388445519,1759171832696,-168.42354809,0.00023032,2]
[388445551,1759171833043,-217.84211981,0.00023111,2]
[388445555,1759171833072,-2512.05668464,0.00023119,2]
[388445557,1759171833084,-1200.0,0.0002312,2]
[388445559,1759171833094,-480.0,0.00023121,2]
[388445561,1759171833104,-480.0,0.00023121,2]
[388445563,1759171833115,-300.0,0.00023121,2]
[388445564,1759171833125,-300.0,0.00023121,2]
[388445566,1759171833136,-480.0,0.00023121,2]
[388445567,1759171833146,-530.15,0.00023121,2]
[388445569,1759171833156,-480.0,0.00023121,2]
[388445571,1759171833167,-612.16600097,0.00023121,2]
[388445573,1759171833177,-501.07,0.00023121,2]
[388445575,1759171833189,-16944.41145313,0.00023122,2]
[388445577,1759171833200,-968.33294469,0.00023122,2]
[388445579,1759171833211,-162.01,0.00023122,10]
[388445580,1759171833220,-50000.0,0.00023131,2]